bitfinex/quotes_SOLUSD_20250722
["timestamp","ask_amount","ask_price","bid_price","bid_amount"]
[1753222760524,0.14216157,201.74,201.72,21.54]
[1753222760823,0.14216157,201.74,201.72,20.84]
[1753222761609,0.14216157,201.74,201.73,0.7]
[1753222762325,0.14216157,201.74,201.72,20.84]
[1753222762828,0.14216157,201.74,201.72,25.94766269]
[1753222764615,0.14216157,201.74,201.72,20.84]
[1753222764921,0.84216157,201.74,201.72,20.84]
[1753222766723,0.84216157,201.74,201.7,0.03]
[1753222766724,16.78468397,201.73,201.7,0.03]
[1753222766907,0.14216157,201.72,201.71,20.84]
[1753222767420,0.14216157,201.73,201.71,25.94766269]
[1753222768030,0.14216157,201.73,201.72,0.7]
[1753222768201,0.14216157,201.74,201.72,5.10766269]
[1753222768401,0.14216157,201.74,201.72,0.7]
[1753222768601,0.14216157,201.74,201.71,25.24766269]
[1753222768806,0.14216157,201.74,201.73,0.7]
[1753222769228,0.84216157,201.74,201.73,20.84]
[1753222770813,5.79903675,201.74,201.73,20.84]
[1753222771124,0.84216157,201.74,201.73,20.84]
[1753222771936,0.14216157,201.74,201.73,20.84]
[1753222772133,0.14216157,201.74,201.73,21.54]
[1753222772439,0.14216157,201.75,201.73,20.84]
[1753222774906,0.14216157,201.75,201.73,21.54]
[1753222775236,0.14216157,201.75,201.73,20.84]
[1753222776235,0.14216157,201.75,201.73,21.54]
[1753222776419,0.14216157,201.75,201.73,20.84]
[1753222780752,16.92684554,201.73,201.7,20.87]
[1753222780917,17.62684554,201.73,201.7,20.87]
[1753222781920,0.14216157,201.73,201.71,0.7]
[1753222783426,16.92684554,201.76,201.72,0.7]
[1753222783648,16.92684554,201.76,201.71,4.40766269]
[1753222783819,16.92684554,201.76,201.73,0.7]
[1753222784839,4.40766269,201.81,201.75,4.40766269]
[1753222785049,0.7,201.82,201.79,4.40766269]
[1753222785252,5.71437311,201.85,201.8,5.10766269]
[1753222785554,5.71437311,201.85,201.81,5.10766269]
[1753222785727,16.92684554,201.84,201.81,4.40766269]
[1753222785931,17.48468397,201.84,201.81,4.40766269]
[1753222786245,0.06,201.85,201.82,5.10766269]
[1753222786450,0.06,201.85,201.83,5.10766269]
[1753222786755,16.84468397,201.85,201.83,0.7]
[1753222786945,0.14216157,201.84,201.83,5.10766269]
[1753222787443,0.14216157,201.84,201.82,20.84]
[1753222787444,0.14216157,201.84,201.82,25.24766269]
[1753222788954,0.14216157,201.84,201.82,20.84]
[1753222789625,0.14216157,201.84,201.82,25.24766269]
[1753222789952,0.14216157,201.84,201.82,25.91766269]
[1753222790552,0.06,201.85,201.83,4.40766269]
[1753222790746,0.06,201.85,201.84,5.07766269]
[1753222791135,0.06,201.85,201.84,4.40766269]
[1753222791932,0.06,201.85,201.83,4.40766269]
[1753222792129,0.06,201.85,201.83,5.07766269]
[1753222792641,0.06,201.85,201.84,4.40766269]
[1753222795062,0.06,201.85,201.83,5.07766269]
[1753222795663,0.06,201.85,201.84,5.07766269]
[1753222797174,0.06,201.85,201.84,10.03208203]
[1753222799567,0.06,201.85,201.84,25.89766269]
[1753222802334,0.06,201.85,201.84,30.85208203]
[1753222809881,0.06,201.85,201.84,38.45208203]
[1753222810179,0.06,201.9,201.86,32.4897]
[1753222810380,0.06,201.9,201.89,30.40766269]
[1753222810569,0.06,201.9,201.89,51.22766269]
[1753222810772,0.06,201.9,201.89,56.85085502]
[1753222815885,0.06,201.9,201.89,70.98833694]
[1753222816095,0.06,201.91,201.89,70.98833694]
[1753222816273,0.06,201.92,201.9,9.48532538]
[1753222816464,0.06,201.92,201.91,25.70293285]
[1753222816664,0.06,201.92,201.91,33.97293285]
[1753222817475,0.06,201.92,201.91,12.67766269]
[1753222817684,0.06,201.92,201.91,33.47766269]
[1753222817886,0.06,201.92,201.91,38.43036438]
[1753222820890,0.06,201.92,201.91,38.92563454]
[1753222823301,0.06,201.92,201.91,34.02270169]
[1753222823592,0.06,201.92,201.91,58.80766269]
[1753222824281,0.06,201.92,201.91,63.76036438]
[1753222824996,0.06,201.92,201.91,64.45036438]
[1753222826972,0.06,201.92,201.91,43.65036438]
[1753222827174,0.06,201.92,201.91,38.45036438]
[1753222829374,0.06,201.92,201.87,0.69]
[1753222829590,0.68,201.91,201.85,4.95417389]
[1753222829809,16.78468397,201.9,201.87,4.40766269]
[1753222830009,0.68,201.89,201.88,20.8]
[1753222830217,0.68,201.89,201.88,25.20766269]
[1753222830598,16.78468397,201.9,201.88,25.20766269]
[1753222830913,17.46468397,201.9,201.88,25.20766269]
[1753222831412,16.78468397,201.91,201.88,20.8]
[1753222831605,0.68,201.9,201.89,4.40766269]
[1753222832078,0.06,201.92,201.89,4.40766269]
[1753222832277,16.78468397,201.91,201.9,20.8]
[1753222833475,17.46468397,201.91,201.9,20.8]
[1753222833988,16.78468397,201.91,201.9,20.8]
[1753222834308,17.46468397,201.91,201.9,20.8]
[1753222834702,16.78468397,201.91,201.9,25.20766269]
[1753222836500,16.84468397,201.92,201.9,25.20766269]
[1753222836699,17.52468397,201.92,201.9,25.20766269]
[1753222838434,0.06,201.92,201.91,4.40766269]
[1753222839012,0.06,201.92,201.91,36.05036438]
[1753222840321,0.06,201.92,201.91,17.65036438]
[1753222841211,0.06,201.94,201.93,26.0]
[1753222841409,0.06,201.94,201.93,59.3028838]
[1753222841718,0.06,201.96,201.93,59.9928838]
[1753222841907,0.06,201.96,201.95,4.40766269]
[1753222842111,0.06,201.99,201.96,26.0]
[1753222842308,0.06,201.99,201.96,51.20766269]
[1753222842521,0.06,201.99,201.96,51.89766269]
[1753222843033,0.06,201.99,201.97,6.2276]
[1753222843210,0.06,202.02,202.01,30.95024998]
[1753222843404,0.06,202.02,202.01,64.25293766]
[1753222843601,0.06,202.02,202.01,64.94293766]
[1753222844001,0.06,202.04,202.01,64.94293766]
[1753222844209,0.06,202.06,202.05,26.0]
[1753222844420,0.06,202.06,202.05,51.70258968]
[1753222844805,0.06,202.07,202.05,51.70258968]
[1753222844806,0.06,202.07,202.05,59.99258968]
[1753222845006,0.06,202.07,202.06,5.09766269]
[1753222845806,0.06,202.07,202.06,10.04668773]
[1753222847105,0.06,202.07,202.06,9.35668773]
[1753222847302,0.06,202.07,202.06,10.02668773]
[1753222848814,0.06,202.07,202.06,16.75127942]
[1753222849133,0.06,202.07,202.06,24.35127942]
[1753222849637,0.06,202.07,202.06,19.94361673]
[1753222849815,0.06,202.07,202.06,24.35127942]
[1753222852913,0.06,202.07,202.06,44.46127942]
[1753222854941,0.78,202.07,202.06,18.73225438]
[1753222855143,0.78,202.07,202.06,39.51225438]
[1753222856550,0.06,202.07,202.06,39.51225438]
[1753222856955,0.06,202.07,202.06,44.46127942]
[1753222857156,0.06,202.07,202.06,45.13127942]
[1753222858519,0.06,202.07,202.06,24.35127942]
[1753222858825,0.06,202.07,202.06,45.13127942]
[1753222860249,0.06,202.09,202.07,34.81532538]
[1753222860452,0.06,202.09,202.07,30.9025407]
[1753222860754,0.06,202.09,202.07,31.5725407]
[1753222862046,0.06,202.09,202.07,36.52132082]
[1753222863947,0.06,202.09,202.07,56.13644281]
[1753222864838,0.06,202.09,202.07,56.80644281]
[1753222865724,0.06,202.09,202.07,57.30132082]
[1753222867054,0.06,202.09,202.07,44.12132082]
[1753222867354,0.06,202.09,202.07,64.90132082]
[1753222867730,0.06,202.09,202.07,64.40644281]
[1753222870057,0.06,202.13,202.11,65.72]
[1753222870355,4.94437099,202.26,202.17,0.35817175]
[1753222870356,4.40766269,202.22,202.17,0.35817175]
[1753222870538,4.40766269,202.21,202.18,20.78]
[1753222870744,16.78468397,202.2,202.18,20.78]
[1753222870941,17.50468397,202.19,202.18,20.78]
[1753222871341,17.50468397,202.19,202.18,25.18766269]
[1753222872251,0.72,202.19,202.18,25.18766269]
[1753222875962,0.72,202.19,202.18,20.78]
[1753222876256,0.72,202.19,202.18,25.18766269]
[1753222877064,0.72,202.22,202.18,30.80375033]
[1753222877267,16.78468397,202.21,202.18,26.39608764]
[1753222877440,16.78468397,202.22,202.2,4.40766269]
[1753222877640,16.78468397,202.22,202.21,20.76]
[1753222878167,17.44468397,202.22,202.21,20.76]
[1753222878965,17.58684554,202.22,202.15,7.6]
[1753222879145,5.06766269,202.21,202.16,20.76]
[1753222879458,16.78468397,202.19,202.16,20.76]
[1753222879664,0.66,202.18,202.16,20.76]
[1753222880374,16.78468397,202.17,202.16,20.76]
[1753222880753,17.44468397,202.17,202.16,20.76]
[1753222881276,17.44468397,202.17,202.14,6.71736958]
[1753222881464,21.87317783,202.17,202.16,20.76]
[1753222881789,16.92684554,202.17,202.16,20.76]
[1753222881990,16.78468397,202.17,202.16,20.76]
[1753222882281,16.78468397,202.17,202.16,25.16766269]
[1753222882496,0.66,202.17,202.16,25.16766269]
[1753222883058,0.66,202.17,202.16,20.76]
[1753222883986,17.44468397,202.17,202.16,20.76]
[1753222884487,22.53317783,202.17,202.16,20.76]
[1753222888566,0.14216157,202.16,202.15,20.76]
[1753222888872,0.80216157,202.16,202.15,20.76]
[1753222891674,5.74873853,202.16,202.15,20.76]
[1753222892189,5.08873853,202.16,202.15,20.76]
[1753222892486,5.74873853,202.16,202.15,20.76]
[1753222893468,10.15640122,202.16,202.15,20.76]
[1753222893782,26.94108519,202.16,202.15,20.76]
[1753222893993,22.5334225,202.16,202.15,20.76]
[1753222895484,26.94108519,202.16,202.15,20.76]
[1753222895881,22.5334225,202.16,202.15,20.76]
[1753222896883,26.94108519,202.16,202.15,20.76]
[1753222897077,22.5334225,202.16,202.15,20.76]
[1753222897268,17.58684554,202.16,202.15,20.76]
[1753222898476,22.5334225,202.16,202.15,20.76]
[1753222901482,26.94108519,202.16,202.15,20.76]
[1753222902083,22.5334225,202.16,202.15,20.76]
[1753222903376,21.8734225,202.16,202.15,20.76]
[1753222903686,16.78468397,202.16,202.15,21.42]
[1753222904284,16.78468397,202.16,202.15,25.82766269]
[1753222904487,16.78468397,202.16,202.15,25.85766269]
[1753222904680,16.78468397,202.16,202.15,21.45]
[1753222904880,16.78468397,202.16,202.15,25.85766269]
[1753222905085,0.06,202.17,202.15,30.80448435]
[1753222905388,0.06,202.17,202.16,5.06766269]
[1753222907502,0.06,202.17,202.16,10.01423965]
[1753222909280,0.06,202.17,202.16,17.61423965]
[1753222909874,0.06,202.17,202.16,7.6]
[1753222910192,0.06,202.17,202.15,0.03]
[1753222910193,16.78468397,202.16,202.15,0.03]
[1753222910399,17.48468397,202.16,202.15,0.03]
[1753222911172,17.62684554,202.16,202.15,0.03]
[1753222911377,26.98108519,202.16,202.15,0.03]
[1753222913011,52.98108519,202.16,202.15,0.03]
[1753222913174,52.98108519,202.16,202.14,6.74736958]
[1753222913175,47.33450823,202.15,202.14,6.74736958]
[1753222913516,0.14216157,202.13,202.11,0.03]
[1753222914008,22.03450823,202.12,202.11,0.03]
[1753222915478,26.98206413,202.12,202.11,0.03]
[1753222920890,16.92684554,202.12,202.11,0.03]
[1753222921488,21.87440144,202.12,202.11,0.03]
[1753222922443,22.57440144,202.12,202.11,0.03]
[1753222923012,21.87440144,202.12,202.11,0.03]
[1753222923603,16.92684554,202.12,202.11,0.03]
[1753222924017,16.78468397,202.12,202.11,0.03]
[1753222924222,16.78468397,202.12,202.11,5.15766269]
[1753222924594,16.92684554,202.12,202.11,0.03]
[1753222924893,17.62684554,202.12,202.11,0.03]
[1753222926015,22.57440144,202.12,202.11,0.03]
[1753222927418,17.62684554,202.12,202.11,0.03]
[1753222927918,16.92684554,202.12,202.11,0.03]
[1753222932196,21.87440144,202.12,202.11,0.03]
[1753222932402,22.57440144,202.12,202.11,0.03]
[1753222933322,16.92684554,202.12,202.11,0.03]
[1753222934118,17.62684554,202.12,202.11,0.03]
[1753222934319,16.92684554,202.12,202.11,0.03]
[1753222941532,21.87440144,202.12,202.11,0.03]
[1753222941731,26.96206413,202.12,202.11,0.03]
[1753222943509,16.92684554,202.12,202.11,0.03]
[1753222943829,17.60684554,202.12,202.11,0.03]
[1753222944617,16.92684554,202.12,202.11,0.03]
[1753222944829,16.78468397,202.12,202.11,0.03]
[1753222945144,16.78468397,202.12,202.11,5.15766269]
[1753222946430,16.78468397,202.12,202.11,0.75]
[1753222948345,16.78468397,202.12,202.11,0.03]
[1753222948556,26.96206413,202.12,202.11,0.03]
[1753222949233,22.55440144,202.12,202.11,0.03]
[1753222949432,26.96206413,202.12,202.11,0.03]
[1753222960876,26.28206413,202.12,202.11,0.03]
[1753222961775,22.01450823,202.12,202.11,0.03]
[1753222962070,16.92684554,202.12,202.11,0.03]
[1753222963144,21.87440144,202.12,202.11,0.03]
[1753222963852,22.55440144,202.12,202.11,0.03]
[1753222965272,17.60684554,202.12,202.11,0.03]
[1753222966071,16.92684554,202.12,202.11,0.03]
[1753222966954,17.60684554,202.12,202.11,0.03]
[1753222967495,16.92684554,202.12,202.11,0.03]
[1753222967664,17.62684554,202.12,202.11,0.03]
[1753222968386,22.57440144,202.12,202.11,0.03]
[1753222968683,26.98206413,202.12,202.11,0.03]
[1753222970384,22.57440144,202.12,202.11,0.03]
[1753222970587,17.62684554,202.12,202.11,0.03]
[1753222970882,16.92684554,202.12,202.11,0.71]
[1753222971185,16.92684554,202.12,202.11,0.03]
[1753222971672,16.92684554,202.12,202.11,0.71]
[1753222973767,21.33450823,202.12,202.11,0.03]
[1753222973965,26.98206413,202.12,202.11,0.03]
[1753222974680,16.92684554,202.12,202.11,0.03]
[1753222974878,16.92684554,202.12,202.11,0.71]
[1753222975980,16.92684554,202.12,202.11,5.6578007]
[1753222976181,16.92684554,202.12,202.11,10.06546339]
[1753222976182,16.78468397,202.12,202.11,10.06546339]
[1753222976482,16.78468397,202.12,202.11,5.6578007]
[1753222978087,16.78468397,202.12,202.11,0.71]
[1753222978280,16.78468397,202.12,202.11,0.03]
[1753222979071,16.78468397,202.12,202.11,0.71]
[1753222980361,16.78468397,202.12,202.11,10.06546339]
[1753222980974,16.78468397,202.12,202.11,0.71]
[1753222981795,16.78468397,202.12,202.11,10.06546339]
[1753222981983,16.78468397,202.12,202.11,0.71]
[1753222983694,16.78468397,202.12,202.11,10.06546339]
[1753222984001,16.78468397,202.12,202.11,0.03]
[1753222984497,16.78468397,202.12,202.11,0.71]
[1753222985292,16.78468397,202.12,202.11,0.03]
[1753222987491,16.78468397,202.12,202.11,0.71]
[1753222990074,16.78468397,202.12,202.11,5.11766269]
[1753222991300,16.78468397,202.12,202.11,0.03]
[1753222991900,17.48468397,202.12,202.11,0.03]
[1753222996209,16.78468397,202.12,202.11,0.03]
[1753222996917,0.06,202.14,202.11,5.11766269]
[1753222997213,0.06,202.14,202.12,0.68]
[1753223000214,0.06,202.14,202.12,5.62747867]
[1753223002117,0.06,202.14,202.12,10.03514136]
[1753223004188,0.06,202.14,202.13,4.40766269]
[1753223004492,0.06,202.14,202.13,5.06766269]
[1753223005317,0.06,202.14,202.13,8.42539373]
[1753223011296,0.06,202.14,202.13,10.00834419]
[1753223011928,0.06,202.14,202.13,17.60834419]
[1753223013716,1e-08,202.14,202.13,18.1030753]
[1753223014124,0.06,202.19,202.16,26.0]
[1753223014297,0.06,202.19,202.18,4.40103306]
[1753223014708,0.06,202.19,202.18,5.06103306]
[1753223015105,0.06,202.19,202.18,10.0071207]
[1753223017314,0.06,202.19,202.18,30.7471207]
[1753223017908,0.06,202.19,202.18,38.3471207]
[1753223022710,0.06,202.19,202.18,17.6071207]
[1753223022913,0.06,202.19,202.18,38.3471207]
[1753223023500,0.06,202.19,202.18,42.74815376]
[1753223023913,0.06,202.19,202.18,38.3471207]
[1753223024632,0.06,202.21,202.2,26.0]
[1753223024823,0.06,202.21,202.2,63.14206612]
[1753223025139,0.06,202.21,202.2,68.74766453]
[1753223027035,1e-08,202.21,202.2,68.74766453]
[1753223031249,1e-08,202.21,202.2,98.46766453]
[1753223034144,0.06,202.22,202.2,98.46766453]
[1753223034351,1e-08,202.22,202.21,5.10103306]
[1753223034645,0.06,202.23,202.21,5.59556844]
[1753223034829,0.06,202.23,202.22,51.82103306]
[1753223035036,0.06,202.23,202.22,25.82103306]
[1753223035227,0.06,202.23,202.22,24.23365822]
[1753223035538,0.06,202.23,202.22,36.7787675]
[1753223038426,0.06,202.23,202.22,16.0587675]
[1753223038627,0.06,202.23,202.22,36.7787675]
[1753223039051,0.06,202.23,202.22,16.0587675]
[1753223039355,0.06,202.23,202.22,36.7787675]
[1753223040459,0.06,202.24,202.22,36.7787675]
[1753223040629,0.06,202.24,202.23,3.51365822]
[1753223040832,0.06,202.24,202.23,50.23365822]
[1753223041456,0.06,202.24,202.23,49.53365822]
[1753223041752,0.06,202.24,202.23,28.47852297]
[1753223041943,0.74,202.24,202.23,54.47852297]
[1753223042251,0.06,202.24,202.23,54.47852297]
[1753223042860,0.06,202.24,202.23,55.17852297]
[1753223043163,0.06,202.26,202.25,26.0]
[1753223043324,0.06,202.28,202.25,57.13365822]
[1753223043529,0.06,202.28,202.27,2.81365822]
[1753223043730,0.06,202.28,202.27,23.53365822]
[1753223043941,0.06,202.28,202.27,29.1775451]
[1753223045233,0.06,202.28,202.27,30.75792478]
[1753223046547,0.06,202.28,202.27,26.36388688]
[1753223046860,0.06,202.28,202.27,30.05792478]
[1753223047059,0.74,202.28,202.27,4.3940379]
[1753223047245,0.74,202.28,202.27,25.1140379]
[1753223048256,0.74,202.28,202.27,30.05792478]
[1753223049348,0.06,202.28,202.27,30.05792478]
[1753223050664,0.74,202.28,202.27,9.33792478]
[1753223050841,0.74,202.28,202.27,30.05792478]
[1753223055567,0.74,202.28,202.27,25.66388688]
[1753223055781,0.74,202.28,202.27,4.3940379]
[1753223055974,16.78468397,202.27,202.26,7.6]
[1753223056144,17.46468397,202.27,202.26,28.32]
[1753223057261,0.14216157,202.26,202.2,16.96944821]
[1753223057467,0.14216157,202.26,202.22,4.94510928]
[1753223057668,16.78468397,202.24,202.23,20.72]
[1753223057850,17.44468397,202.24,202.23,20.75]
[1753223058856,17.44468397,202.24,202.23,25.69486475]
[1753223059250,17.44468397,202.24,202.23,30.08890265]
[1753223059749,17.44468397,202.24,202.23,25.1440379]
[1753223060266,17.44468397,202.24,202.23,20.75]
[1753223060654,17.44468397,202.24,202.23,30.08890265]
[1753223061478,0.14216157,202.26,202.23,30.08890265]
[1753223061676,0.72,202.28,202.25,4.3940379]
[1753223061976,0.72,202.28,202.27,4.3940379]
[1753223062459,0.72,202.28,202.26,20.72]
[1753223062665,0.72,202.28,202.27,4.3940379]
[1753223063653,0.72,202.28,202.26,25.1140379]
[1753223063861,0.72,202.28,202.26,20.72]
[1753223064551,0.72,202.28,202.26,25.1140379]
[1753223065389,17.44468397,202.27,202.26,20.72]
[1753223065549,17.44468397,202.27,202.26,25.1140379]
[1753223067290,16.78468397,202.26,202.23,0.03]
[1753223067459,17.44468397,202.26,202.24,20.72]
[1753223067660,16.78468397,202.24,202.23,0.03]
[1753223067970,17.58684554,202.24,202.23,20.75]
[1753223069561,22.53146579,202.24,202.23,20.75]
[1753223069761,26.92550369,202.24,202.23,20.75]
[1753223070384,21.98088344,202.24,202.23,20.75]
[1753223071699,26.92550369,202.24,202.23,20.75]
[1753223072961,26.92550369,202.24,202.23,0.03]
[1753223083265,47.64550369,202.24,202.23,0.03]
[1753223084112,0.06,202.26,202.23,5.0940379]
[1753223084291,0.06,202.26,202.25,4.3940379]
[1753223084471,16.78468397,202.24,202.23,4.4240379]
[1753223084672,0.72,202.26,202.23,4.4240379]
[1753223084986,0.06,202.26,202.25,4.3940379]
[1753223085182,0.06,202.26,202.25,5.0640379]
[1753223086076,0.06,202.26,202.25,10.00841367]
[1753223086478,0.06,202.26,202.25,9.33841367]
[1753223086693,0.06,202.26,202.25,10.00841367]
[1753223093980,0.06,202.26,202.25,5.61437577]
[1753223094186,0.06,202.26,202.25,10.00841367]
[1753223095120,0.06,202.26,202.25,30.72841367]
[1753223095321,0.06,202.26,202.25,30.05841367]
[1753223095477,0.06,202.26,202.25,25.1140379]
[1753223095677,0.06,202.26,202.25,30.05841367]
[1753223096973,0.06,202.26,202.25,30.72841367]
[1753223100310,0.06,202.26,202.25,20.72]
[1753223100609,16.92684554,202.25,202.24,4.3940379]
[1753223100807,16.92684554,202.25,202.24,20.72]
[1753223100991,0.14216157,202.25,202.24,25.1140379]
[1753223101911,0.14216157,202.25,202.24,4.3940379]
[1753223102110,0.14216157,202.25,202.24,25.1140379]
[1753223102494,0.75,202.26,202.24,25.1140379]
[1753223102495,0.06,202.26,202.24,25.7840379]
[1753223102814,0.06,202.26,202.25,5.0640379]
[1753223103194,0.06,202.26,202.25,4.3940379]
[1753223103594,0.06,202.26,202.25,5.0640379]
[1753223104798,0.06,202.26,202.25,10.00841367]
[1753223107211,0.06,202.26,202.25,5.61437577]
[1753223107386,0.06,202.26,202.25,10.00841367]
[1753223114090,0.06,202.26,202.25,4.3940379]
[1753223114293,0.75,202.26,202.23,7.63]
[1753223114497,16.92684554,202.25,202.24,20.72]
[1753223114830,0.83216157,202.25,202.24,20.72]
[1753223116515,0.14216157,202.25,202.24,25.7840379]
[1753223116917,0.14216157,202.25,202.24,25.1140379]
[1753223117698,0.14216157,202.25,202.24,20.72]
[1753223121410,0.14216157,202.25,202.24,25.1140379]
[1753223124718,0.14216157,202.25,202.24,25.1440379]
[1753223125334,0.14216157,202.25,202.24,20.75]
[1753223127300,0.86216157,202.25,202.24,20.75]
[1753223128106,0.14216157,202.25,202.24,20.75]
[1753223132832,17.64684554,202.25,202.24,20.75]
[1753223134654,16.92684554,202.25,202.24,20.75]
[1753223140554,16.78468397,202.25,202.24,20.75]
[1753223140722,0.06,202.26,202.24,30.73865815]
[1753223140926,0.06,202.26,202.25,5.0440379]
[1753223141422,0.06,202.26,202.25,9.98841367]
[1753223151837,0.06,202.26,202.25,30.68841367]
[1753223156838,0.06,202.26,202.25,38.78285124]
[1753223161544,0.06,202.28,202.27,26.0]
[1753223161765,0.06,202.28,202.27,51.0940379]
[1753223161960,0.06,202.28,202.27,59.3540379]
[1753223162548,0.06,202.28,202.27,64.29792478]
[1753223165174,0.06,202.28,202.27,64.79231346]
[1753223167851,0.06,202.28,202.27,63.63792478]
[1753223168267,0.06,202.28,202.27,64.29792478]
[1753223170157,0.73,202.28,202.27,38.54388688]
[1753223170370,0.73,202.28,202.27,59.24388688]
[1753223171380,0.73,202.28,202.27,63.63792478]
[1753223171556,0.73,202.28,202.27,56.03792478]
[1753223173065,0.67,202.28,202.27,56.03792478]
[1753223174457,0.67,202.28,202.27,51.0940379]
[1753223175480,0.67,202.28,202.27,56.03792478]
[1753223176578,0.67,202.28,202.27,9.33792478]
[1753223176782,0.67,202.28,202.27,30.03792478]
[1753223177174,0.67,202.28,202.26,11.9940379]
[1753223177376,17.45468397,202.28,202.27,20.7]
[1753223178462,16.78468397,202.27,202.2,10.560255]
[1753223178660,16.78468397,202.25,202.22,4.3940379]
[1753223178866,16.78468397,202.25,202.23,25.0940379]
[1753223179063,0.68,202.24,202.23,25.0940379]
[1753223179473,16.78468397,202.25,202.23,25.0940379]
[1753223179677,0.68,202.24,202.23,25.0940379]
[1753223180481,0.68,202.24,202.23,30.03890265]
[1753223182995,0.68,202.24,202.23,25.0940379]
[1753223183192,16.78468397,202.23,202.2,2.960255]
[1753223183407,16.78468397,202.21,202.2,2.960255]
[1753223183693,17.46468397,202.21,202.2,23.660255]
[1753223186765,22.00088344,202.21,202.2,23.660255]
[1753223187276,17.60684554,202.21,202.2,23.660255]
[1753223191284,26.94623728,202.21,202.2,23.660255]
[1753223192277,26.94623728,202.21,202.2,2.960255]
[1753223192896,28.48393728,202.21,202.2,2.960255]
[1753223194089,24.08989938,202.21,202.2,2.960255]
[1753223194489,28.48393728,202.21,202.2,2.960255]
[1753223196889,32.87797518,202.21,202.2,2.960255]
[1753223197083,32.87797518,202.21,202.2,1e-08]
[1753223197281,16.78468397,202.17,202.14,20.7]
[1753223197510,21.32088344,202.15,202.14,20.7]
[1753223197694,0.14216157,202.13,202.08,4.3940379]
[1753223197896,16.78468397,202.11,202.1,20.7]
[1753223199305,16.78468397,202.11,202.06,20.7]
[1753223199306,0.14216157,202.1,202.06,20.7]
[1753223199501,0.14216157,202.07,202.06,20.7]
[1753223199817,0.82216157,202.07,202.06,20.7]
[1753223201592,17.60684554,202.07,202.06,20.7]
[1753223201797,22.00088344,202.07,202.06,20.7]
[1753223202607,17.60684554,202.07,202.06,20.7]
[1753223203905,22.00088344,202.07,202.06,20.7]
[1753223204927,22.00088344,202.07,202.0,4.95047097]
[1753223204928,16.78468397,202.06,202.0,4.95047097]
[1753223205090,16.92684554,202.04,202.01,20.7]
[1753223205295,0.14216157,202.04,202.01,20.7]
[1753223205605,0.82216157,202.04,202.01,20.7]
[1753223205808,0.14216157,202.04,202.01,20.7]
[1753223206008,16.78468397,202.02,202.01,20.7]
[1753223207498,16.78468397,202.02,202.01,25.65024998]
[1753223207809,0.14216157,202.04,202.01,26.36024998]
[1753223208019,0.84216157,202.04,202.01,25.65024998]
[1753223208399,0.84216157,202.04,202.01,25.0940379]
[1753223209027,0.84216157,202.04,202.01,20.7]
[1753223209599,16.78468397,202.02,202.01,20.7]
[1753223210000,16.92684554,202.04,202.01,20.7]
[1753223210196,17.62684554,202.04,202.01,20.7]
[1753223211222,0.14216157,202.04,202.01,25.65018689]
[1753223211424,16.78468397,202.07,202.03,4.3940379]
[1753223211618,16.92684554,202.05,202.03,4.3940379]
[1753223212328,0.14216157,202.05,202.03,10.05363368]
[1753223212638,0.14216157,202.05,202.04,4.3940379]
[1753223214525,9.34213636,202.1,202.04,10.05353351]
[1753223214526,16.78468397,202.1,202.04,10.05353351]
[1753223214729,16.78468397,202.1,202.09,4.3940379]
[1753223214938,0.14216157,202.1,202.09,25.8040379]
[1753223215426,0.14216157,202.1,202.09,25.0940379]
[1753223215804,0.14216157,202.1,202.09,30.04232826]
[1753223216309,0.14216157,202.1,202.09,30.75232826]
[1753223216735,0.14216157,202.1,202.09,30.04232826]
[1753223219211,0.14216157,202.1,202.09,30.75232826]
[1753223220247,0.7,202.16,202.09,30.75232826]
[1753223220410,16.78468397,202.15,202.14,4.3940379]